fUST/lending_fUST_20250925
["ID","MTS","AMOUNT","RATE_DAILY","PERIOD"]
[387685759,1758809440830,-394.58552777,0.00020521,2]
[387685760,1758809440839,-1000.0,0.00020521,2]
[387685762,1758809440849,-20626.81688817,0.00020627,3]
[387685764,1758809440859,-1117.9,0.00020696,2]
[387685766,1758809440868,-480.0,0.00020696,2]
[387685768,1758809440878,-480.0,0.00020696,2]
[387685770,1758809440886,-480.0,0.00020696,2]
[387685772,1758809440895,-480.0,0.00020696,2]
[387685774,1758809440904,-480.0,0.00020696,2]
[387685776,1758809440913,-480.0,0.00020696,2]
[387685778,1758809440922,-480.0,0.00020696,2]
[387685780,1758809440932,-497.81,0.00020696,2]
[387685782,1758809440941,-480.0,0.00020696,2]
[387685784,1758809440951,-480.0,0.00020696,2]
[387685786,1758809440961,-480.0,0.00020696,2]
[387685788,1758809440971,-480.0,0.00020696,2]
[387685790,1758809440981,-896.03,0.00020696,2]
[387685792,1758809440990,-480.0,0.00020696,2]
[387685794,1758809440999,-480.0,0.00020697,2]
[387685796,1758809441008,-480.0,0.00020697,2]
[387685798,1758809441018,-491.2,0.00020712,3]
[387685800,1758809441028,-491.2,0.00020712,3]
[387685802,1758809441037,-480.0,0.0002072,2]
[387685804,1758809441046,-160.0,0.00020733,2]
[387685806,1758809441055,-150.0,0.0002077,2]
[387685807,1758809441064,-1117.9,0.0002097,2]
[387685808,1758809441073,-480.0,0.0002097,2]
[387685809,1758809441082,-480.0,0.0002097,2]
[387685810,1758809441092,-480.0,0.0002097,2]
[387685811,1758809441101,-480.0,0.0002097,2]
[387685812,1758809441110,-480.0,0.0002097,2]
[387685813,1758809441119,-480.0,0.0002097,2]
[387685814,1758809441129,-497.81,0.0002097,2]
[387685816,1758809441138,-480.0,0.0002097,2]
[387685818,1758809441148,-480.0,0.0002097,2]
[387685820,1758809441157,-531.46,0.0002097,2]
[387685822,1758809441167,-504.9,0.0002097,2]
[387685824,1758809441176,-896.03,0.0002097,2]
[387685826,1758809441186,-480.0,0.0002097,2]
[387685828,1758809441196,-480.0,0.00020971,2]
[387685830,1758809441207,-480.0,0.00020971,2]
[387685832,1758809441217,-501.60747907,0.00020972,2]
[387685834,1758809441228,-480.0,0.00020994,2]
[387685836,1758809441238,-1680.0,0.00021158,2]
[387685838,1758809441248,-1117.9,0.00021244,2]
[387685840,1758809441257,-480.0,0.00021244,2]
[387685842,1758809441267,-480.0,0.00021244,2]
[387685844,1758809441276,-325.83313614,0.00021244,2]
[387685846,1758809441286,-480.0,0.00021244,2]
[387685848,1758809441295,-480.0,0.00021244,2]
[387685850,1758809441305,-480.0,0.00021244,2]
[387685852,1758809441316,-497.81,0.00021244,2]
[387685854,1758809441326,-480.0,0.00021244,2]
[387685856,1758809441336,-480.0,0.00021244,2]
[387685858,1758809441346,-896.03,0.00021244,2]
[387685860,1758809441356,-480.0,0.00021244,2]
[387685862,1758809441366,-440.84,0.00021245,2]
[387685864,1758809441376,-480.0,0.00021245,2]
[387685866,1758809441385,-272.17853028,0.00021249,2]
[387685868,1758809441396,-480.0,0.00021268,2]
[387685870,1758809441406,-260.0,0.00021281,2]
[387685873,1758809441415,-1117.9,0.00021518,2]
[387685875,1758809441424,-480.0,0.00021518,2]
[387685877,1758809441433,-480.0,0.00021518,2]
[387685879,1758809441442,-480.0,0.00021518,2]
[387685881,1758809441451,-480.0,0.00021518,2]
[387685883,1758809441463,-480.0,0.00021518,2]
[387685885,1758809441473,-497.81,0.00021518,2]
[387685887,1758809441482,-480.0,0.00021518,2]
[387685889,1758809441491,-480.0,0.00021518,2]
[387685891,1758809441500,-896.03,0.00021518,2]
[387685893,1758809441509,-480.0,0.00021518,2]
[387685895,1758809441518,-160.27,0.00021519,2]
[387685897,1758809441527,-480.0,0.00021542,2]
[387685899,1758809441536,-150.0,0.00021715,2]
[387685901,1758809441545,-500.0,0.00021743,2]
[387685903,1758809441554,-500.0,0.00021743,2]
[387685904,1758809441562,-500.0,0.00021767,2]
[387685906,1758809441571,-500.0,0.00021767,2]
[387685908,1758809441580,-1117.9,0.00021792,2]
[387685910,1758809441589,-480.0,0.00021792,2]
[387685912,1758809441596,-480.0,0.00021792,2]
[387685914,1758809441604,-480.0,0.00021792,2]
[387685916,1758809441612,-480.0,0.00021792,2]
[387685918,1758809441620,-480.0,0.00021792,2]
[387685920,1758809441627,-497.81,0.00021792,2]
[387685922,1758809441635,-480.0,0.00021792,2]
[387685924,1758809441642,-480.0,0.00021792,2]
[387685926,1758809441650,-896.03,0.00021792,2]
[387685928,1758809441658,-486.87216997,0.00021816,2]
[387685930,1758809441667,-360.0,0.00021829,2]
[387685932,1758809441676,-480.0,0.00021917,2]
[387685934,1758809441685,-480.0,0.00021917,2]
[387685936,1758809441694,-480.0,0.00021917,2]
[387685938,1758809441703,-480.0,0.00021917,2]
[387685940,1758809441712,-480.0,0.00021917,2]
[387685941,1758809441721,-480.0,0.00021917,2]
[387685944,1758809441731,-480.0,0.00021917,2]
[387685945,1758809441740,-480.0,0.00021917,2]
[387685947,1758809441750,-480.0,0.00021917,2]
[387685949,1758809441760,-480.0,0.00021917,2]
[387685952,1758809441770,-500.0,0.00021917,2]
[387685954,1758809441780,-500.0,0.00021917,2]
[387685956,1758809441789,-500.0,0.00021917,2]
[387685958,1758809441799,-407.85891231,0.00021917,2]
[387685960,1758809441809,-501.60747907,0.00022044,2]
[387685962,1758809441818,-248.74781039,0.00022066,2]
[387685964,1758809441827,-1117.9,0.00022066,2]
[387685966,1758809441837,-501.28345476,0.00022066,2]
[387685968,1758809441847,-480.0,0.00022066,2]
[387685970,1758809441856,-480.0,0.00022066,2]
[387685972,1758809441866,-480.0,0.00022066,2]
[387685974,1758809441875,-481.14941345,0.00022066,2]
[387685976,1758809441884,-497.81,0.00022066,2]
[387685978,1758809441893,-480.0,0.00022066,2]
[387685980,1758809441902,-480.0,0.00022066,2]
[387685982,1758809441912,-896.03,0.00022066,2]
[387685984,1758809441922,-1616.73,0.000221,2]
[387685986,1758809441932,-1000.0,0.00022291,2]
[387685988,1758809441941,-502.27942844,0.00022315,2]
[387685990,1758809441950,-1000.0,0.00022315,2]
[387685992,1758809441961,-1117.9,0.0002234,2]
[387685994,1758809441971,-480.0,0.0002234,2]
[387685996,1758809441980,-480.0,0.0002234,2]
[387685998,1758809441989,-200.0,0.0002234,2]
[387686000,1758809441999,-497.81,0.0002234,2]
[387686002,1758809442008,-480.0,0.0002234,2]
[387686004,1758809442018,-415.73,0.0002234,2]
[387686006,1758809442027,-896.03,0.0002234,2]
[387686008,1758809442037,-460.0,0.00022377,2]
[387686010,1758809442046,-160.0,0.00022394,2]
[387686012,1758809442056,-233.66602051,0.00022394,2]
[387686014,1758809442065,-160.0,0.00022399,2]
[387686016,1758809442074,-500.0,0.00022482,2]
[387686018,1758809442084,-1117.9,0.00022614,2]
[387686020,1758809442093,-480.0,0.00022614,2]
[387686023,1758809442104,-480.0,0.00022614,2]
[387686025,1758809442113,-497.81,0.00022614,2]
[387686027,1758809442122,-480.0,0.00022614,2]
[387686029,1758809442131,-896.03,0.00022614,2]
[387686031,1758809442141,-150.0,0.00022659,2]
[387686033,1758809442150,-168.0,0.00022792,2]
[387686035,1758809442159,-224.00456391,0.00022814,2]
[387686037,1758809442168,-168.0,0.00022819,2]
[387686039,1758809442178,-168.0,0.00022829,2]
[387686041,1758809442187,-1500.0,0.00022863,2]
[387686043,1758809442196,-1117.9,0.00022888,2]
[387686045,1758809442206,-480.0,0.00022888,2]
[387686047,1758809442217,-480.0,0.00022888,2]
[387686048,1758809442228,-497.81,0.00022888,2]
[387686050,1758809442238,-480.0,0.00022888,2]
[387686053,1758809442248,-896.03,0.00022888,2]
[387686055,1758809442257,-560.0,0.00022925,2]
[387686057,1758809442267,-168.0,0.00023003,2]
[387686059,1758809442275,-406.28539915,0.0002303,2]
[387686061,1758809442286,-501.60747907,0.00023116,2]
[387686063,1758809442296,-350.0,0.00023122,2]
[387686064,1758809442307,-194.72792766,0.00023122,2]
[387686067,1758809442317,-250.0,0.00023122,2]
[387686069,1758809442326,-500.0,0.00023122,2]
[387686071,1758809442336,-151.0,0.00023122,2]
[387686073,1758809442345,-168.0,0.0002314,2]
[387686075,1758809442354,-476.83231082,0.00023157,2]
[387686077,1758809442363,-1117.9,0.00023162,2]
[387686079,1758809442373,-480.0,0.00023162,2]
[387686081,1758809442383,-480.0,0.00023162,2]
[387686083,1758809442393,-497.81,0.00023162,2]
[387686085,1758809442402,-480.0,0.00023162,2]
[387686087,1758809442411,-896.03,0.00023162,2]
[387686089,1758809442421,-720.0,0.00023166,2]
[387686091,1758809442430,-168.0,0.00023274,2]
[387686093,1758809442439,-168.0,0.00023322,2]
[387686095,1758809442449,-2000.0,0.00023411,2]
[387686097,1758809442460,-168.0,0.00023433,2]
[387686099,1758809442470,-1117.9,0.00023436,2]
[387686101,1758809442480,-480.0,0.00023436,2]
[387686103,1758809442490,-480.0,0.00023436,2]
[387686105,1758809442500,-497.81,0.00023436,2]
[387686107,1758809442510,-480.0,0.00023436,2]
[387686109,1758809442520,-168.0,0.00023468,2]
[387686111,1758809442529,-660.0,0.00023473,2]
[387686113,1758809442538,-168.0,0.00023518,2]
[387686115,1758809442548,-168.0,0.00023601,2]
[387686117,1758809442558,-150.0,0.00023603,2]
[387686127,1758809442644,-1117.9,0.0002371,2]
[387686129,1758809442654,-480.0,0.0002371,2]
[387686131,1758809442664,-480.0,0.0002371,2]
[387686133,1758809442674,-497.81,0.0002371,2]
[387686135,1758809442684,-480.0,0.0002371,2]
[387686137,1758809442694,-168.0,0.00023781,2]
[387686139,1758809442704,-1328.512129,0.000238,2]
[387686141,1758809442713,-168.0,0.00023925,2]
[387686143,1758809442723,-2500.0,0.00023958,2]
[387686145,1758809442732,-1117.9,0.00023984,2]
[387686147,1758809442742,-480.0,0.00023984,2]
[387686149,1758809442752,-480.0,0.00023984,2]
[387686152,1758809442762,-497.81,0.00023984,2]
[387686153,1758809442771,-480.0,0.00023984,2]
[387686156,1758809442781,-168.0,0.00024071,2]
[387686158,1758809442791,-944.03,0.00024137,6]
[387686159,1758809442800,-501.60747907,0.00024187,2]
[387686162,1758809442810,-150.0,0.00024219,30]
[387686163,1758809442820,-1117.9,0.00024258,2]
[387686166,1758809442829,-480.0,0.00024258,2]
[387686168,1758809442839,-222.18495634,0.00024258,2]
[387686170,1758809442849,-497.81,0.00024258,2]
[387686172,1758809442858,-480.0,0.00024258,2]
[387686174,1758809442870,-168.0,0.00024365,2]
[387686176,1758809442879,-168.0,0.00024386,2]
[387686178,1758809442889,-168.0,0.00024482,2]
[387686180,1758809442899,-171.67,0.00024524,2]
[387686182,1758809442907,-1117.9,0.00024532,2]
[387686184,1758809442916,-366.38,0.00024532,2]
[387686186,1758809442925,-497.81,0.00024532,2]
[387686188,1758809442934,-480.0,0.00024532,2]
[387686190,1758809442943,-168.0,0.00024612,2]
[387686192,1758809442951,-168.0,0.00024616,2]
[387686194,1758809442961,-380.0,0.00024658,2]
[387686196,1758809442971,-1616.73,0.000247,2]
[387686198,1758809442981,-1117.9,0.00024806,2]
[387686200,1758809442990,-497.81,0.00024806,2]
[387686202,1758809443000,-397.06798182,0.00024806,2]
[387686204,1758809443009,-168.0,0.00024824,2]
[387686206,1758809443018,-76108.9638206,0.000249,2]
[387686208,1758809443028,-1117.9,0.0002508,2]
[387686210,1758809443038,-497.81,0.0002508,2]
[387686212,1758809443047,-168.0,0.0002509,2]
[387686214,1758809443056,-501.60747907,0.00025259,3]
[387686216,1758809443066,-1117.9,0.00025354,2]
[387686218,1758809443075,-497.81,0.00025354,2]
[387686220,1758809443085,-150.0,0.00025372,30]
[387686222,1758809443094,-200.28,0.00025467,2]
[387686224,1758809443104,-250.0,0.00025533,2]
[387686226,1758809443114,-1117.96758226,0.00025628,2]
[387686228,1758809443123,-497.84000619,0.00025628,2]
[387686230,1758809443133,-501.60747907,0.00026331,5]
[387686232,1758809443143,-224.00456391,0.00026401,2]
[387686234,1758809443153,-228.89,0.0002641,2]
[387686236,1758809443162,-155.1,0.00026695,7]
[387686238,1758809443171,-155.1,0.00026795,7]
[387686240,1758809443181,-155.1,0.00026816,7]
[387686242,1758809443190,-151.0,0.00026818,2]
[387686244,1758809443200,-151.0,0.00026818,2]
[387686246,1758809443210,-500.0,0.00026818,2]
[387686248,1758809443220,-158.36051303,0.00026818,2]
[387686250,1758809443233,-500.0,0.00026818,2]
[387686252,1758809443242,-151.0,0.00026818,2]
[387686254,1758809443253,-229.08924033,0.00026818,2]
[387686256,1758809443263,-155.1,0.00026895,7]
[387686258,1758809443273,-155.1,0.00026916,7]
[387686260,1758809443282,-155.1,0.00026995,7]
[387686262,1758809443292,-155.1,0.00027016,7]
[387686264,1758809443304,-300.86364638,0.00027092,2]
[387686266,1758809443314,-500.0,0.00027092,2]
[387686268,1758809443323,-500.0,0.00027092,2]
[387686270,1758809443333,-151.0,0.00027092,2]
[387686272,1758809443342,-155.1,0.00027116,7]
[387686274,1758809443351,-155.1,0.00027216,7]
[387686276,1758809443361,-155.1,0.00027316,7]
[387686278,1758809443370,-257.5,0.00027353,2]
[387686280,1758809443380,-500.0,0.00027366,2]
[387686283,1758809443392,-500.0,0.00027366,2]
[387686285,1758809443401,-151.0,0.00027366,2]
[387686287,1758809443411,-480.0,0.00027397,2]
[387686289,1758809443420,-501.60747907,0.00027403,7]
[387686291,1758809443430,-155.1,0.00027416,15]
[387686293,1758809443440,-155.1,0.00027516,15]
[387686295,1758809443450,-179.64071856,0.00027574,2]
[387686297,1758809443461,-2160.0,0.0002758,2]
[387686299,1758809443471,-635.0,0.0002758,2]
[387686301,1758809443480,-410.0,0.0002758,2]
[387686303,1758809443490,-1616.73,0.000276,2]
[387686305,1758809443499,-155.1,0.00027616,15]
[387686307,1758809443508,-500.0,0.0002764,2]
[387686309,1758809443517,-500.0,0.0002764,2]
[387686311,1758809443527,-151.0,0.0002764,2]
[387686313,1758809443536,-155.1,0.00027716,15]
[387686315,1758809443545,-500.0,0.0002776,5]
[387686317,1758809443554,-155.1,0.00027816,15]
[387686319,1758809443564,-548.0,0.00027914,2]
[387686321,1758809443573,-500.0,0.00027914,2]
[387686323,1758809443583,-252.04236636,0.00027914,2]
[387686325,1758809443591,-151.0,0.00027914,2]
[387686326,1758809443601,-155.14060003,0.00027916,15]
[387686328,1758809443611,-1131.18,0.00028,2]
[387686330,1758809443621,-978.0,0.00028137,2]
[387686331,1758809443630,-1131.18,0.0002814,2]
[387686333,1758809443639,-500.0,0.00028188,2]
[387686335,1758809443649,-151.0,0.00028188,2]
[387686337,1758809443659,-225.2,0.00028219,14]
[387686339,1758809443668,-1131.18,0.0002828,2]
[387686341,1758809443677,-286.11,0.00028297,2]
[387686343,1758809443687,-528.030366,0.00028308,5]
[387686345,1758809443696,-8462.7735912,0.00028385,14]
[387686347,1758809443707,-5000.0,0.00028385,17]
[387686349,1758809443716,-5000.0,0.00028385,19]
[387686351,1758809443725,-5000.0,0.00028385,14]
[387686353,1758809443735,-5000.0,0.00028385,16]
[387686355,1758809443744,-500.0,0.00028462,2]
[387686357,1758809443753,-501.60747907,0.00028475,9]
[387686359,1758809443762,-4586.0,0.00028497,2]
[387686361,1758809443772,-157.55736161,0.0002856,5]
[387686363,1758809443782,-500.0,0.00028736,2]
[387686365,1758809443791,-225.2,0.00028904,15]
[387686367,1758809443800,-2000.0,0.00029424,30]
[387686369,1758809443809,-1858.099999,0.00029424,30]
[387686371,1758809443819,-155.0,0.00029424,2]
[387686373,1758809443828,-157.55736161,0.00029435,5]
[387686375,1758809443837,-501.60747907,0.00029547,12]
[387686377,1758809443846,-225.2,0.00029589,16]
[387686379,1758809443856,-180.26185894,0.000296,2]
[387686381,1758809443865,-500.0,0.00029886,5]
[387686383,1758809443875,-224.00456391,0.00029989,2]
[387686385,1758809443886,-225.2,0.00030273,17]
[387686387,1758809443896,-500.0,0.00030434,5]
[387686389,1758809443905,-2160.0,0.0003058,2]
[387686391,1758809443914,-635.0,0.0003058,2]
[387686393,1758809443923,-410.0,0.0003058,2]
[387686395,1758809443931,-501.60747907,0.00030619,14]
[387686397,1758809443940,-225.2,0.00030958,18]
[387686399,1758809443949,-978.0,0.00031137,2]
[387686401,1758809443958,-225.2,0.00031643,19]
[387686403,1758809443967,-501.60747907,0.0003169,16]
[387686405,1758809443975,-159.745298,0.00031699,30]
[387686407,1758809443984,-1616.73,0.000317,2]
[387686409,1758809443993,-159.745298,0.00031863,30]
[387686411,1758809444002,-826.641,0.00031864,7]
[387686413,1758809444010,-200.0,0.00032,120]
[387686415,1758809444019,-198.99999999,0.00032,120]
[387686417,1758809444028,-177.4108125,0.00032,120]
[387686419,1758809444038,-159.745298,0.00032,30]
[387686421,1758809444047,-216.09257822,0.00032,120]
[387686423,1758809444056,-183.22441895,0.00032,120]
[387686425,1758809444064,-716.82456778,0.00032,120]
[387686427,1758809444073,-690.72402878,0.00032,120]
[387686429,1758809444082,-183.04,0.00032,120]
[387686431,1758809444092,-162.75628058,0.00032,120]
[387686433,1758809444101,-159.745298,0.00032164,30]
[387686435,1758809444111,-177.4108125,0.000323,120]
[387686437,1758809444120,-183.22441895,0.000323,120]
[387686439,1758809444130,-716.82456778,0.000323,120]
[387686441,1758809444139,-690.72402878,0.000323,120]
[387686443,1758809444148,-183.04,0.000323,120]
[387686445,1758809444158,-162.75628058,0.000323,120]
[387686447,1758809444167,-225.2,0.00032328,20]
[387686449,1758809444176,-159.745298,0.00032329,30]
[387686450,1758809444186,-159.745298,0.00032466,30]
[387686453,1758809444196,-177.4108125,0.000326,120]
[387686455,1758809444207,-183.22441895,0.000326,120]
[387686457,1758809444217,-716.82456778,0.000326,120]
[387686459,1758809444228,-690.72402878,0.000326,120]
[387686461,1758809444238,-183.04,0.000326,120]
[387686463,1758809444247,-162.75628058,0.000326,120]
[387686464,1758809444258,-159.745298,0.0003263,30]
[387686466,1758809444267,-501.60747907,0.00032762,19]
[387686468,1758809444278,-159.745298,0.00032767,30]
[387686470,1758809444287,-155.0,0.000328,120]
[387686472,1758809444297,-704.46,0.00032876,120]
[387686474,1758809444309,-1500.0,0.00032877,2]
[387686476,1758809444319,-159.745298,0.00032932,30]
[387686478,1758809444328,-716.82456778,0.00033,120]
[387686480,1758809444337,-690.72402878,0.00033,120]
[387686482,1758809444346,-183.04,0.00033,120]
[387686484,1758809444355,-162.75628058,0.00033,120]
[387686486,1758809444364,-225.2,0.00033013,21]
[387686488,1758809444374,-159.745298,0.00033068,30]
[387686490,1758809444383,-185.08693842,0.000332,117]
[387686492,1758809444393,-159.745298,0.00033233,30]
[387686494,1758809444402,-716.82456778,0.000333,120]
[387686496,1758809444411,-690.72402878,0.000333,120]
[387686498,1758809444421,-183.04,0.000333,120]
[387686500,1758809444431,-162.75628058,0.000333,120]
[387686502,1758809444442,-159.745298,0.00033397,30]
[387686504,1758809444451,-224.00456391,0.00033577,2]
[387686507,1758809444460,-2160.0,0.0003358,2]
[387686509,1758809444469,-635.0,0.0003358,2]
[387686511,1758809444479,-410.0,0.0003358,2]
[387686512,1758809444488,-225.2,0.00033698,22]
[387686515,1758809444501,-704.46,0.00033698,120]
[387686516,1758809444510,-501.60747907,0.00033834,21]
[387686519,1758809444520,-978.0,0.00034137,2]
[387686520,1758809444530,-225.2,0.00034383,23]
[387686522,1758809444540,-704.46,0.0003452,120]
[387686525,1758809444550,-160.0,0.00034838,3]
[387686526,1758809444560,-501.60747907,0.00034906,23]
[387686529,1758809444570,-1616.73,0.00035,14]
[387686531,1758809444579,-225.2,0.00035068,24]
[387686532,1758809444588,-704.46,0.00035342,120]
[387686534,1758809444598,-200.0,0.0003562,41]
[387686537,1758809444608,-225.2,0.00035753,25]
[387686538,1758809444618,-519.73855678,0.0003591,2]
[387686540,1758809444627,-501.60747907,0.00035978,26]
[387686543,1758809444637,-704.46,0.00036164,120]
[387686544,1758809444647,-225.2,0.00036438,26]
[387686546,1758809444657,-2160.0,0.0003658,2]
[387686548,1758809444666,-635.0,0.0003658,2]
[387686551,1758809444676,-410.0,0.0003658,2]
[387686553,1758809444686,-151.0,0.00036673,30]
[387686554,1758809444695,-500.0,0.00036986,7]
[387686556,1758809444705,-704.46,0.00036986,120]
[387686559,1758809444715,-519.73855678,0.00037,120]
[387686560,1758809444724,-501.60747907,0.0003705,28]
[387686562,1758809444734,-225.2,0.00037123,27]
[387686564,1758809444743,-978.0,0.00037137,2]
[387686566,1758809444753,-224.00456391,0.00037165,2]
[387686568,1758809444762,-350.0,0.00037568,46]
[387686570,1758809444771,-187.78006525,0.00037568,46]
[387686572,1758809444780,-250.0,0.00037568,46]
[387686574,1758809444790,-500.0,0.00037568,46]
[387686576,1758809444799,-151.0,0.00037568,46]
[387686578,1758809444808,-350.0,0.00037569,46]
[387686587,1758809444818,-200.0,0.00037569,46]
[387686588,1758809444901,-181.08010149,0.00037569,46]
[387686589,1758809444911,-250.0,0.00037569,46]
[387686590,1758809444921,-500.0,0.00037569,46]
[387686591,1758809444930,-151.0,0.00037569,46]
[387686592,1758809444940,-225.2,0.00037808,28]
[387686593,1758809444950,-704.46,0.00037808,120]
[387686594,1758809444961,-500.0,0.00037808,7]
[387686595,1758809444971,-11249.46276,0.00038,30]
[387686596,1758809444981,-501.60747907,0.00038122,30]
[387686597,1758809444991,-151.0,0.00038286,30]
[387686598,1758809445001,-1500.0,0.00038356,2]
[387686599,1758809445010,-225.2,0.00038493,29]
[387686600,1758809445021,-380.9760507,0.00038603,30]
[387686601,1758809445031,-500.0,0.0003863,7]
[387686602,1758809445040,-704.46,0.0003863,120]
[387686603,1758809445050,-5000.0,0.00039,60]
[387686604,1758809445059,-1000.0,0.00039,30]
[387686605,1758809445069,-308.0576652,0.00039151,30]
[387686606,1758809445078,-350.0,0.00039177,30]
[387686607,1758809445088,-200.0,0.00039177,30]
[387686608,1758809445098,-174.61919141,0.00039177,30]
[387686609,1758809445107,-250.0,0.00039177,30]
[387686610,1758809445117,-500.0,0.00039177,30]
[387686611,1758809445127,-151.0,0.00039177,30]
[387686612,1758809445136,-225.2,0.00039178,30]
[387686613,1758809445147,-350.0,0.00039193,32]
[387686615,1758809445156,-200.0,0.00039193,32]
[387686616,1758809445166,-168.3888056,0.00039193,32]
[387686617,1758809445177,-250.0,0.00039193,32]
[387686618,1758809445187,-151.0,0.00039193,32]
[387686619,1758809445197,-500.0,0.00039193,32]
[387686620,1758809445208,-151.0,0.00039193,32]
[387686621,1758809445217,-501.60747907,0.00039194,32]
[387686622,1758809445229,-500.0,0.00039452,7]
[387686623,1758809445239,-704.46,0.00039452,120]
[387686624,1758809445248,-2160.0,0.0003958,2]
[387686625,1758809445258,-635.0,0.0003958,2]
[387686626,1758809445267,-410.0,0.0003958,2]
[387686627,1758809445276,-390.4368942,0.00039726,30]
[387686628,1758809445286,-390.4368942,0.00039726,30]
[387686629,1758809445296,-390.4368942,0.00039726,30]
[387686630,1758809445307,-390.4368942,0.00039726,30]
[387686631,1758809445316,-390.4368942,0.00039726,30]
[387686632,1758809445326,-390.4368942,0.00039726,30]
[387686633,1758809445335,-390.4368942,0.00039726,30]
[387686634,1758809445345,-246.1719551,0.00039726,30]
[387686635,1758809445354,-12360.3656598,0.00039822,2]
[387686636,1758809445364,-225.2,0.00039863,31]
[387686637,1758809445374,-180.26185894,0.00039899,2]
[387686638,1758809445383,-157.606124,0.000399,2]
[387686639,1758809445394,-157.606122,0.000399,2]
[387686640,1758809445404,-157.606122,0.000399,2]
[387686641,1758809445414,-151.0,0.000399,30]
[387686642,1758809445424,-522.8876733,0.000399,120]
[387686643,1758809445433,-3888.28432633,0.000399,2]
[387686644,1758809445443,-160.0,0.0003995,4]
[387686645,1758809445453,-208.77493811,0.0003995,5]
[387686646,1758809445464,-160.0,0.0003995,3]
[387686647,1758809445473,-160.0,0.0003995,5]
[387686648,1758809445484,-350.0,0.00039998,30]
[387686649,1758809445494,-350.0,0.00039998,31]
[387686650,1758809445503,-245.0,0.00039998,30]
[387686651,1758809445513,-200.0,0.00039998,30]
[387686652,1758809445523,-1890.07296081,0.00039998,30]
[387686653,1758809445533,-200.0,0.00039998,31]
[387686654,1758809445543,-156.587,0.00039998,30]
[387686655,1758809445553,-162.380719,0.00039998,31]
[387686656,1758809445563,-151.0,0.00039998,30]
[387686657,1758809445573,-250.0,0.00039998,30]
[387686658,1758809445582,-500.0,0.00039998,30]
[387686659,1758809445591,-250.0,0.00039998,31]
[387686660,1758809445600,-151.0,0.00039998,31]
[387686661,1758809445610,-500.0,0.00039998,31]
[387686662,1758809445619,-151.0,0.00039998,30]
[387686663,1758809445628,-151.0,0.00039998,31]
[387686665,1758809445638,-200.88282832,0.00039999,30]
[387686666,1758809445647,-157.606122,0.00039999,30]
[387686668,1758809445656,-391.92847716,0.00039999,31]
[387686670,1758809445666,-396.8363743,0.00039999,31]
[387686672,1758809445675,-500.0,0.00039999,31]
[387686674,1758809445684,-425.70677014,0.00039999,31]
[387686676,1758809445693,-500.0,0.00039999,31]
[387686678,1758809445702,-500.0,0.00039999,31]
[387686680,1758809445713,-500.0,0.00039999,31]
[387686682,1758809445723,-500.0,0.00039999,31]
[387686684,1758809445732,-500.0,0.00039999,31]
[387686686,1758809445741,-650.39614824,0.00039999,31]
[387686688,1758809445750,-500.0,0.00039999,31]